{"text_format":"1","workbook":"xlsx","n_sheets":3,"sheets":["dane finansowe","wyjaśnienia pozycji","Arkusz3"],"not_rendered":{"charts":0,"images":0,"macros":0,"external_links":0,"defined_names":1,"comments":0,"pivot_tables":0},"unopened":[],"bounds":{"document_bytes":16777216,"sheet_cells":100000,"rows_first":2000,"rows_last":500,"rows_between":2000,"halvings":0,"cell_chars":16384,"cell_head_chars":4096},"cells_cut":0,"cells_raw":0,"read":"whole","date_system":"1900"}

{"sheet":"dane finansowe","index":0,"n_rows":32,"n_cols":22,"rows_kept":32,"cut":false,"hidden":false,"merged":[[1,2,1,8],[0,2,0,4]]}
["WNIOSKODAWCA"]
[null,null,"Załącznik W.13  do Instrukcji Kredytowania Klientów Instytucjonalnych Cz. II "]
[]
["zakres danych finansowych ","dane historyczne z przedostatniego pełnego roku obrachunkowego ","dane historyczne z ostatniego pełnego roku obrachunkowego ","okres bieżący","prognozy ","prognozy ","prognozy ","prognozy ","prognozy ","prognozy ","prognozy ","prognozy ","prognozy ","prognozy ","prognozy ","prognozy ","prognozy ","prognozy ","prognozy ","prognozy ","prognozy ","prognozy "]
["Okres (np. XII 2017)","XII 2020","XII 2021","XII 2022","XII 2023","XII 2024","XII 2025","XII 2026","XII 2027","XII 2028","XII 2029","XII 2030","XII 2031","XII 2032","XII 2033","XII 2034","XII 2035","XII 2036","XII 2037","XII 2038","XII 2039","XII 2040"]
["ilość dni w okresie (np. 360)",360,360,360,360,360,360,360,360,360,360,360,360,360,360,360,360,360,360,360,360,360]
["Przychody ze sprzedaży",{"$f":"SUM(B8:B10)","v":0},{"$f":"SUM(C8:C10)","v":0},0,0,0,0,0,0,{"$f":"SUM(J8:J10)","v":0},0,0,0,0,0,0,0,0,0,0,0,0]
["- przychody ze sprzedaży produkcji roślinnej"]
["- przychody ze sprzedaży produkcji zwierzęcej",null,null,{"$f":"-E10","v":0}]
["- przychody ze sprzedaży pozostałej produkcji i usług"]
["Koszty bezpośrednie",{"$f":"SUM(B12:B14)","v":0},{"$f":"SUM(C12:C14)","v":0},0,0,0,0,0,0,{"$f":"SUM(J12:J14)","v":0},0,0,0,0,0,0,0,0,0,0,0,0]
["- koszty produkcji roślinnej (nawozy, pasze, nasiona, śr.ochr.roślin)"]
["- koszty produkcji zwierzęcej "]
["- koszty pozostałej produkcji i usług"]
["Nadwyżka bezpośrednia z produkcji brutto (A-B)",{"$f":"B7-B11","v":0},{"$f":"C7-C11","v":0},0,0,0,0,0,0,{"$f":"J7-J11","v":0},0,0,0,0,0,0,0,0,0,0,0,0]
["Dopłaty bezpośrednie"]
["Koszty pośrednie ",{"$f":"SUM(B18:B21)","v":0},{"$f":"SUM(C18:C21)","v":0},0,0,0,0,0,0,{"$f":"SUM(J18:J21)","v":0},0,0,0,0,0,0,0,0,0,0,0,0]
["- koszty ogólnogospodarcze (paliwo, opał, remonty, naprawy, ubezpieczenia, energia elektr.)"]
["- podatki np. podatek rolny (inne niż podatek dochodowy) "]
["- amortyzacja "]
["- koszty czynników zewnętrznych (koszty pracy, dzierżawy,prowizje)"]
["Dochód brutto z działalności rolniczej",{"$f":"B15+B16-B17","v":0},{"$f":"C15+C16-C17","v":0},0,0,0,0,0,0,{"$f":"J15+J16-J17","v":0},0,0,0,0,0,0,0,0,0,0,0,0]
[" - podatek dochodowy z działalnośco rolniczej (o ile dotyczy)"]
["Dochód netto z działalności rolniczej ",{"$f":"B22-B23","v":0},{"$f":"C22-C23","v":0},0,0,0,0,0,0,{"$f":"J22-J23","v":0},0,0,0,0,0,0,0,0,0,0,0,0]
["Dotacje "]
["Pozostałe dochody rolnika spoza gospodarstwa "]
["Koszty prowadzenia gospodarstwa domowego  "]
["Dochód osobisty (dochód netto z działalności rolniczej + dotacje+pozostałe dochody spoza gospodarstwa+amortyzacja-koszty prowadzenia gospodarstwa domowego) ",{"$f":"B24+B25+B26+B20-B27","v":0},{"$f":"C24+C25+C26+C20-C27","v":0},0,0,0,0,0,0,{"$f":"J24+J25+J26+J20-J27","v":0},0,0,0,0,0,0,0,0,0,0,0,0]
[]
[]
[null,null,null,"____________________________________________________"]
[null,null,null,null,"(miejscowość, data, imię, nazwisko i podpis Wnioskodawcy)"]

{"sheet":"wyjaśnienia pozycji","index":1,"n_rows":6,"n_cols":2,"rows_kept":6,"cut":false,"hidden":false,"merged":[[1,1,1,8],[2,1,2,8],[3,1,3,8],[4,1,4,8],[5,1,5,8]]}
["wyjaśnienia do pozycji:"]
["Koszty bezpośrednie ","Koszty bezpośrednie to koszty, które:  można bez żadnej wątpliwości zaliczyć do określonej działalności produkcyjnej; ich wielkość ma proporcjonalny związek ze skalą produkcji;  mają bezpośredni wpływ na wielkość (wartość) produkcji. \nDo kosztów bezpośrednich tj. zmiennych kosztów w działalności gospodarstwa rolnego należą: \n1) nasiona i sadzeniaki;\n2) nawozy (bez wapna nawozowego);\n3) środki ochrony roślin;\n4) inseminacja zwierząt, usługi weterynaryjne i leki;\n5) pasze;\n6) ubezpieczenia specjalne (plantacji i zwierząt);\n7) pozostałe podnoszące jakość i wartość produkcji, obejmujące między innymi: \na) wydatki specjalne (opakowania, konserwanty),\nb) usługi specjalistyczne (suszenie produktów, przygotowanie do sprzedaży opłaty targowiskowe, dezynfekcja, klasyfikacja zwierząt),\nc) najem dorywczy do prac specjalistycznych."]
["Koszty pośrednie - ogólnogospodarcze","Kosztami ogólnogospodarczymi określa się grupę kosztów pośrednich, wynikających z istnienia gospodarstwa, których nie można przypisać poszczególnym działom produkcyjnym w gospodarstwie rolnym. Do kosztów ogólnogospodarczych należą koszty:\n1) energii elektrycznej;\n2) opału;\n3) paliw, smarów;\n4) remontów bieżących, konserwacji i przeglądów;\n5) usług produkcyjnych;\n6) ubezpieczeń majątkowych i komunikacyjnych;\n7) pozostałe pośrednie niebędące podatkami, amortyzacją i kosztami czynników zewnętrznych."]
["Koszty pośrednie - koszty czynników zewnętrznych ","koszty czynników zewnętrznych to koszty pośrednie np. koszty pracy najemnej, czynszów i dzierżaw,  prowizji."]
["Amortyzacja ","amortyzacji nie podlegają grunty oraz prawa wieczystego użytkowania gruntów"]
["Pozostałe dochody rolnika spoza gospodarstwa ","Należy wykazać pozostałe dochody netto rolnika\n Pozostałe dochody rolnika spoza gospodarstwa to:\n1) praca/ renta/ emerytura/ wynajem nieruchomości lub ruchomości;\n2) dochód rolnika z tytułu prowadzenia innej działalności np. z tytułu działalności gospodarczej (zasady wyznaczania dochodu netto z tytułu działalności gospodarczej określa Metodyka MZ)\n3) dochód netto współmałżonka (o ile dotyczy) z ww. tytułów"]

{"sheet":"Arkusz3","index":2,"n_rows":0,"n_cols":0,"rows_kept":0,"cut":false,"hidden":false,"merged":[]}